Cogmind - Beta 10.1 @@@ ROGUE MODE // 2020.10.04 @ 18:59:31 Player: Andru7428 Result: Self-destructed Performance ------------- Evolutions (2) 1000 Regions Visited (7) 1400 Robots Destroyed (84) 420 Value Destroyed (2838) 2838 Prototype IDs (10) 200 Alien Tech Used (0) 0 Bonus (464) 464 TOTAL SCORE: 6322 Bonus ------- High Alert Combat Kills 208 Follower Combat Kills 14 Entered Garrisons 200 Used RIF Installer 500 Friendly Fire -458 Cogmind --------- Core Integrity 121/550 Matter 300/300 Energy 310/310 System Corruption 0% Temperature Cool (9) Movement Core (900) Ox17 Location -8/Materials Parts ------- > --- POWER (1) -------- Reinforced Fission Core > --- PROPULSION (2) --- (None) > --- UTILITY (6) ------ Experimental Heat Sink Large Storage Unit Large Storage Unit Improved Terrain Scan Processor > --- WEAPON (2) ------- (None) > --- INVENTORY (16) --- Light Nuclear Core Advanced Heat Sink Large Storage Unit Improved Sensor Array Advanced Signal Interpreter Relay Coupler [Sentry] (21) Thief Drone Bay (2/3) AS-neutralizer No. 17b 8R-AWN's Boregun Mini Grenade Launcher Datajack Datajack Great Maul Peak State ------------ > --- POWER ------------ Nuclear Core > --- PROPULSION ------- Advanced Myomer Leg Advanced Myomer Leg > --- UTILITY ---------- Experimental Heat Sink Large Storage Unit Large Storage Unit Advanced Weapon Cycler Medium Reactive Plating Medium Reactive Plating > --- WEAPON ----------- 8R-AWN's Boregun 8R-AWN's Boregun > --- INVENTORY -------- Reinforced Fission Core Armored Wheel Armored Wheel Improved Sensor Array Advanced Terrain Scanner Improved Terrain Scan Processor Thief Drone Bay AS-neutralizer No. 17b EM Pulse Cannon Heavy Particle Cannon Heavy Particle Cannon Gauss Rifle Mini Grenade Launcher Datajack Datajack Great Maul [Rating: 69] Favorites ----------- Power Nuclear Core Engine Ion Engine Power Core Nuclear Core Propulsion Advanced Myomer Leg Leg Advanced Myomer Leg Wheel Armored Wheel Utility Large Storage Unit Device Experimental Heat Sink Storage Large Storage Unit Processor Improved Terrain Scan Processor Protection Medium Reactive Plating Weapon Heavy Particle Cannon Energy Gun Medium Laser Energy Cannon Heavy Particle Cannon Ballistic Gun 8R-AWN's Boregun Launcher Mini Grenade Launcher Build | -11 -10 -10 -10 -9 -8 -8 -8 ------- Run | Scr Mat Min Exi Min Mat Gar Mat Slots Evolved 4 | . . . . . 4 . . Power . | . . . . . . . . Propulsion . | . . . . . . . . Utility 4 | . . . . . 4 . . Weapon . | . . . . . . . . Parts Attached 71 | 6 6 7 13 . 16 10 13 Power 9 | 1 2 1 1 . 3 . 1 Engine 5 | 1 2 1 1 . . . . Core 4 | . . . . . 3 . 1 Reactor . | . . . . . . . . Propulsion 11 | 2 2 1 3 . . . 3 Treads . | . . . . . . . . Leg 9 | 2 2 1 3 . . . 1 Wheel 2 | . . . . . . . 2 Hover . | . . . . . . . . Flight . | . . . . . . . . Utility 22 | 1 1 . 4 . 9 4 3 Device 8 | . . . 3 . 3 2 . Storage 6 | 1 1 . 1 . 2 . 1 Processor 1 | . . . . . . 1 . Hackware . | . . . . . . . . Protection 7 | . . . . . 4 1 2 Artifact . | . . . . . . . . Weapon 29 | 2 1 5 5 . 4 6 6 Energy Gun 8 | 1 1 2 . . . . 4 Energy Cannon 5 | . . . 1 . 1 3 . Ballistic Gun 12 | 1 . 1 3 . 2 3 2 Ballistic Cannon . | . . . . . . . . Launcher 4 | . . 2 1 . 1 . . Special Weapon . | . . . . . . . . Impact Weapon . | . . . . . . . . Slashing Weapon . | . . . . . . . . Piercing Weapon . | . . . . . . . . Special Melee Weapon . | . . . . . . . . Unidentified Prototypes 7 | . . . 5 . 1 . 1 Parts Lost 19 | . 3 . 2 . . 2 12 Power 4 | . 2 . 1 . . . 1 Propulsion 2 | . . . . . . . 2 Utility 2 | . . . . . . . 2 Weapon 11 | . 1 . 1 . . 2 7 Highest Loss Streak 5 | . 1 . 1 . . 1 5 Average Slot Usage (%) 96 | . 96 100 100 100 84 100 97 Engine 4 | . 12 14 14 14 1 . . Core 5 | . . . . . 7 9 8 Leg 20 | . 28 28 28 28 18 18 11 Wheel 1 | . . . . . . . 6 Device 12 | . . . 10 . 14 18 17 Storage 20 | . 26 28 18 28 18 18 18 Processor 3 | . . . . . . 4 9 Protection 6 | . . . . . 6 12 7 Energy Gun 4 | . 13 13 2 . . . 3 Energy Cannon 6 | . . . 1 . 5 10 10 Ballistic Gun 10 | . 14 14 23 28 12 7 3 Naked Turns . | . . . . . . . . Heaviest Build 92 | 13 29 29 35 35 90 92 72 Greatest Support 72 | 20 20 25 72 60 60 60 60 Greatest Overweight (x) 19 | 3 1 1 1 . 1 1 19 Average Overweight (x) . | . . 1 . . . 1 1 Largest Inventory Capacity 16 | 6 12 12 12 12 16 16 16 Average Capacity 13 | 5 11 12 10 12 12 16 16 Most Carried 16 | 6 12 12 12 11 16 16 16 Average Carried 13 | 3 7 11 10 11 12 15 15 Final Capacity 16 | 6 12 12 12 12 16 16 16 Final Carried 16 | 6 12 12 11 11 16 16 13 Class Distribution -------------------- 94% | Mutant 5% | Scavenger-Mutant Dominant Class ---------------- Mutant | -10/Materials Mutant | -10/Mines Mutant | -10/Exiles Mutant | -9/Mines Mutant | -8/Materials Mutant | -8/Garrison Mutant | -8/Materials Resources | -11 -10 -10 -10 -9 -8 -8 -8 ----------- Run | Scr Mat Min Exi Min Mat Gar Mat Matter Collected 1945 | 196 210 92 291 . 739 268 149 Remotely . | . . . . . . . . Salvage Created 3631 | 14 289 65 198 . 1583 671 811 Parts 185 | 4 20 9 1 . 89 26 36 Haulers Intercepted 3 | . . . . . 2 . 1 Recyclers Shooed 1 | . . . . . 1 . . Parts Field Recycled . | . . . . . . . . Retrieved Matter . | . . . . . . . . Parts Self-Destructed . | . . . . . . . . Prevented . | . . . . . . . . Kills | -11 -10 -10 -10 -9 -8 -8 -8 ------- Run | Scr Mat Min Exi Min Mat Gar Mat Combat Hostiles Destroyed 68 | . 10 5 6 . 19 13 15 Guns 41 | . 10 2 2 . 13 6 8 Cannons 19 | . . . . . 5 7 7 AOE 8 | . . 3 4 . 1 . . Classes Destroyed 16 | 1 2 . 2 . 10 1 . Worker 1 | . . . . . 1 . . Builder 1 | . . . . . 1 . . Tunneler 1 | 1 . . . . . . . Hauler 3 | . . . . . 2 . 1 Recycler 3 | . . . . . 3 . . Mechanic 1 | . . . . . 1 . . Operator 1 | . . . . . 1 . . Drone 1 | . . . 1 . . . . Watcher 3 | . . . . . 1 . 2 Swarmer 11 | . 5 4 . . . . 2 Grunt 32 | . 5 1 1 . 9 8 8 Brawler 2 | . . . . . 2 . . Duelist 1 | . . . . . . 1 . Sentry 13 | . . . . . 6 3 4 Hunter 4 | . . . . . 2 1 1 Assembled 5 | . . . 5 . . . . Best Kill Streak 5 | 1 4 3 4 . 4 4 5 Combat Bots Only 5 | . 4 3 4 . 3 4 5 Max Kills in Single Turn 3 | 1 2 3 3 . 1 3 1 Gunslinging 1 | . 1 . . . . 1 . Exploded 3 | . . 3 2 . 1 . . Melee . | . . . . . . . . Uniques/NPCs Destroyed 1 | . . . 1 . . . . 8R-AWN (-10/Exiles) Combat | -11 -10 -10 -10 -9 -8 -8 -8 -------- Run | Scr Mat Min Exi Min Mat Gar Mat Damage Taken 4162 | . 565 28 479 . 662 799 1629 Core 647 | . 100 12 106 . 130 34 265 Absorbed by Shields . | . . . . . . . . Core Remaining (%) 56 | 100 . . . 12 . . . Volleys Fired 247 | 1 32 5 36 . 60 51 62 Largest 2 | 1 2 2 2 . 2 2 2 Hottest 150 | 40 70 70 70 . 91 150 150 Shots Fired 471 | 1 64 9 63 . 119 91 124 Gun 321 | 1 64 8 60 . 83 33 72 Cannon 145 | . . . . . 35 58 52 Launcher 5 | . . 1 3 . 1 . . Special . | . . . . . . . . Kinetic 225 | . 32 4 59 . 83 33 14 Thermal 193 | . 22 4 1 . . 56 110 Explosive 5 | . . 1 3 . 1 . . Electromagnetic 48 | 1 10 . . . 35 2 . Robot Hit Streak 21 | 1 14 4 19 . 12 9 21 Robot Miss Streak 6 | . 4 2 2 . 6 2 3 Penetration Max 1 | . . . . . 1 1 . Secondary Targets 5 | . 1 . . . 1 1 2 Max Gunslinging Chain 1 | . 1 . . . 1 1 1 Shots Hit Robots 286 | 1 37 6 43 . 69 55 75 Core Hits 140 | 1 14 6 25 . 40 23 31 Critical Hits 42 | . . . 17 . 20 4 1 Critical Kills 10 | . . . . . 7 3 . Critical Parts Destroyed 15 | . . . . . 13 1 1 Melee Attacks . | . . . . . . . . Impact . | . . . . . . . . Slashing . | . . . . . . . . Piercing . | . . . . . . . . Sneak Attacks . | . . . . . . . . Combat Hostiles . | . . . . . . . . Follow-up Attacks . | . . . . . . . . Damage Inflicted 6847 | 13 406 243 1281 . 1946 1372 1586 Guns 3682 | 13 406 79 727 . 1049 492 916 Cannons 2295 | . . . . . 745 880 670 Explosions 870 | . . 164 554 . 152 . . Melee . | . . . . . . . . Ramming . | . . . . . . . . Kinetic 2645 | . 254 38 726 . 1049 492 86 Thermal 2610 | . 91 41 1 . 152 825 1500 Explosive 718 | . . 164 554 . . . . Electromagnetic 874 | 13 61 . . . 745 55 . Impact . | . . . . . . . . Slashing . | . . . . . . . . Piercing . | . . . . . . . . Highest Corruption . | . . . . . . . . Average Corruption . | . . . . . . . . Corruption Purged . | . . . . . . . . Overload Shots . | . . . . . . . . Overflow Damage 6 | . . . 5 . 1 . . Projectiles . | . . . . . . . . Explosions 6 | . . . 5 . 1 . . Melee . | . . . . . . . . Knockbacks . | . . . . . . . . Impact . | . . . . . . . . Kinetic . | . . . . . . . . Secondary . | . . . . . . . . Self-Inflicted Damage 100 | . . . 44 . 56 . . Shots 2 | . . . 1 . 1 . . Rammed . | . . . . . . . . Targets Rammed . | . . . . . . . . Kicked . | . . . . . . . . Crushed . | . . . . . . . . Highest Temperature 240 | . 240 30 17 . 59 195 126 Average Temperature 44 | . 96 13 10 . 15 48 39 Received Heat Transfer 1469 | . 105 12 20 . 234 324 774 Siege Activations . | . . . . . . . . Robots Corrupted . | . . . . . . . . Combat Hostiles . | . . . . . . . . Parts Fried . | . . . . . . . . Impact Corruptions . | . . . . . . . . Robots Melted . | . . . . . . . . Combat Hostiles . | . . . . . . . . Parts Melted 6 | . 1 . . . . 3 2 Heat Transferred 4259 | . 259 111 9 . 200 1201 2479 Parts Sabotaged . | . . . . . . . . Parts Stolen . | . . . . . . . . Parts Stripped . | . . . . . . . . Power Chain Reactions 2 | . . . . . 2 . . Missiles Intercepted . | . . . . . . . . Alert | -11 -10 -10 -10 -9 -8 -8 -8 ------- Run | Scr Mat Min Exi Min Mat Gar Mat Peak Influence 703 | 5 160 88 . . 395 703 519 Initial 342 | . 3 3 . . . 168 342 Average 323 | 1 85 44 . . 214 578 414 Maximum Alert Level 3 | . . . . . 1 3 2 Low Security (%) 41 | 100 100 100 . 100 52 4 . Level 1 23 | . . . . . 47 16 44 Level 2 23 | . . . . . . 43 55 Level 3 11 | . . . . . . 36 . Level 4 . | . . . . . . . . Level 5 . | . . . . . . . . High Security . | . . . . . . . . Max Security . | . . . . . . . . Squads Dispatched 6 | . 1 1 . . 2 . 2 Investigation 1 | . . 1 . . . . . Extermination . | . . . . . . . . Reinforcement 5 | . 1 . . . 2 . 2 Assault . | . . . . . . . . Garrison . | . . . . . . . . Intercept . | . . . . . . . . Construction Impeded . | . . . . . . . . Haulers Reinforced . | . . . . . . . . Stealth | -11 -10 -10 -10 -9 -8 -8 -8 --------- Run | Scr Mat Min Exi Min Mat Gar Mat Distress Signals 8 | . 1 . . . 5 . 2 Communications Jammed . | . . . . . . . . Distress Signals . | . . . . . . . . Times Spotted 126 | . 19 4 8 . 48 15 32 Peak Tracking Total 9 | . 6 3 9 . 7 4 8 Tactical Retreats 10 | . 1 1 . . 4 2 2 Traps | -11 -10 -10 -10 -9 -8 -8 -8 ------- Run | Scr Mat Min Exi Min Mat Gar Mat Traps Triggered 6 | . . . . . . 5 1 Indirectly . | . . . . . . . . Trap Hack Attempts . | . . . . . . . . Triggered . | . . . . . . . . Disarmed . | . . . . . . . . Reprogrammed . | . . . . . . . . Reused . | . . . . . . . . Traps Extracted . | . . . . . . . . Installed . | . . . . . . . . Triggered . | . . . . . . . . Machines | -11 -10 -10 -10 -9 -8 -8 -8 ---------- Run | Scr Mat Min Exi Min Mat Gar Mat Machines Disabled 8 | . . 1 2 . 3 1 1 Max in Single Turn 1 | . . 1 1 . 1 1 1 Garrison Relay 1 | . . . . . . 1 . Machines Sabotaged . | . . . . . . . . Garrisons Compromised . | . . . . . . . . Overloaded Fab Kills . | . . . . . . . . Fab Network Shutdowns . | . . . . . . . . Hacking | -11 -10 -10 -10 -9 -8 -8 -8 --------- Run | Scr Mat Min Exi Min Mat Gar Mat Machines Accessed 15 | . 5 2 . . 6 . 2 Terminals 11 | . 5 . . . 5 . 1 Fabricators . | . . . . . . . . Repair Stations 1 | . . . . . . . 1 Recycling Units . | . . . . . . . . Scanalyzers . | . . . . . . . . Garrison Access 1 | . . . . . 1 . . Total Hacks 56 | . 25 2 . . 24 . 5 Successful 35 | . 15 2 . . 15 . 3 Failed 20 | . 9 . . . 9 . 2 Catastrophic 3 | . . . . . 2 . 1 Database Lockouts 1 | . 1 . . . . . . Manual 34 | . 14 . . . 18 . 2 Terminals 50 | . 25 . . . 23 . 2 Fabricators . | . . . . . . . . Repair Stations 3 | . . . . . . . 3 Recycling Units . | . . . . . . . . Scanalyzers . | . . . . . . . . Garrison Access 1 | . . . . . 1 . . Terminal Hacks 16 | . 8 2 . . 6 . . Robot Analysis 5 | . 3 . . . 2 . . Prototype ID Bank 1 | . . . . . 1 . . Open Door 2 | . . 2 . . . . . Branch Access Points 1 | . 1 . . . . . . Unreport Threat 1 | . . . . . 1 . . Locate Traps 2 | . 2 . . . . . . Hauler Manifests 2 | . 1 . . . 1 . . Zone Layout 2 | . 1 . . . 1 . . Fabricator Hacks . | . . . . . . . . Repair Station Hacks 1 | . . . . . . . 1 Scan Component 1 | . . . . . . . 1 Recycling Unit Hacks . | . . . . . . . . Scanalyzer . | . . . . . . . . Garrison Access Hacks 1 | . . . . . 1 . . Unlock Access 1 | . . . . . 1 . . Unauthorized Hacks 17 | . 7 . . . 8 . 2 Terminals 17 | . 7 . . . 8 . 2 Track 8 | . 3 . . . 4 . 1 Botnet 9 | . 4 . . . 4 . 1 Fabricators . | . . . . . . . . Repair Stations . | . . . . . . . . Recycling Units . | . . . . . . . . Scanalyzers . | . . . . . . . . Garrison Access . | . . . . . . . . Data Cores Recovered . | . . . . . . . . Used . | . . . . . . . . Hacking Detections 12 | . 4 . . . 6 . 2 Full Trace Events . | . . . . . . . . Feedback Events . | . . . . . . . . Feedback Blocked . | . . . . . . . . Robot Schematics Acquired . | . . . . . . . . Robots Built . | . . . . . . . . Matter . | . . . . . . . . Time . | . . . . . . . . Total Robot Build Rating . | . . . . . . . . Part Schematics Acquired . | . . . . . . . . Parts Built . | . . . . . . . . Matter . | . . . . . . . . Time . | . . . . . . . . Total Part Build Rating . | . . . . . . . . Parts Repaired . | . . . . . . . . Time . | . . . . . . . . Parts Recycled . | . . . . . . . . Recycled Matter . | . . . . . . . . Retrieved Matter . | . . . . . . . . Retrieved Components . | . . . . . . . . Parts Scanalyzed . | . . . . . . . . Part Schematics Acquired . | . . . . . . . . Parts Damaged . | . . . . . . . . Bothacking | -11 -10 -10 -10 -9 -8 -8 -8 ------------ Run | Scr Mat Min Exi Min Mat Gar Mat Used RIF Installer 1 | . . . . . . 1 . Robots Hacked . | . . . . . . . . Non-combat . | . . . . . . . . Combat . | . . . . . . . . Robot Hacks Applied . | . . . . . . . . Relay Couplers Released 4 | . . . . . . 4 . Machine Destruction 4 | . . . . . . 4 . Robots Rewired . | . . . . . . . . Allies Hacked . | . . . . . . . . Hacks Repelled . | . . . . . . . . Allies | -11 -10 -10 -10 -9 -8 -8 -8 -------- Run | Scr Mat Min Exi Min Mat Gar Mat Total Allies 3 | . . 3 . . . . . Largest Group 3 | . . 3 3 . . . . Highest-Rated Group 40 | . . 40 40 . . . . Highest-Rated Ally 16 | . . 16 16 . . . . Total Orders 2 | . . . 2 . . . . RETURN 2 | . . . 2 . . . . Ally Attacks 95 | . . 8 87 . . . . Total Damage 321 | . . 67 254 . . . . Kills 2 | . . 2 . . . . . Allies Corrupted . | . . . . . . . . Allies Melted . | . . . . . . . . Intel | -11 -10 -10 -10 -9 -8 -8 -8 ------- Run | Scr Mat Min Exi Min Mat Gar Mat Robot Analysis Total 5 | . 3 . . . 2 . . Derelict Logs Recovered 3 | . . 3 . . . . . Drone Launches 13 | . . . 13 . . . . Drone Recoveries 12 | . . . 12 . . . . Exploration | -11 -10 -10 -10 -9 -8 -8 -8 ------------- Run | Scr Mat Min Exi Min Mat Gar Mat Turns Passed 7396 | 84 840 992 484 77 1431 2237 1251 Spaces Moved 3897 | 52 477 484 270 63 869 1137 545 Core 12 | 11 . . . . . . 1 Treads . | . . . . . . . . Legs 3642 | 41 477 484 270 63 869 1137 301 Wheels 243 | . . . . . . . 243 Hover . | . . . . . . . . Flight . | . . . . . . . . Fastest Speed 50 | 50 120 150 120 120 120 150 100 Average Speed 139 | 125 144 150 126 120 121 150 141 Slowest Speed 1000 | 200 150 150 150 120 150 150 1000 Overloaded Moves . | . . . . . . . . Propulsion Burnouts . | . . . . . . . . Robots Hopped . | . . . . . . . . Cave-ins Triggered . | . . . . . . . . Exploration Rate (%) 45 | 4 71 84 18 31 56 73 29 Regions Visited 7 Branch Regions 3 Pre-discovered Areas 2 | . . 2 . . . . . Known Exits Taken 2 | . 1 . . . 1 . . Unknown Exits Taken 4 | 1 . 1 1 1 . . . Scrap Searched 1 | . . 1 . . . . . Spaces Dug 7 | . . . . . . . 7 Terrain Destroyed 100 | . . 7 42 . 24 4 23 Melee . | . . . . . . . . Projectile 60 | . . . 23 . 10 4 23 AOE 40 | . . 7 19 . 14 . . Terrain Rammed . | . . . . . . . . Walls Destroyed . | . . . . . . . . Machines Disabled . | . . . . . . . . Actions | -11 -10 -10 -10 -9 -8 -8 -8 --------- Run | Scr Mat Min Exi Min Mat Gar Mat Total 5459 | 67 561 742 351 64 1171 1601 902 Wait 1135 | . 35 237 16 2 206 376 263 Move 3889 | 51 476 483 269 62 868 1135 545 Hop . | . . . . . . . . Pick Up 49 | 8 9 4 7 . 10 3 8 Fast Attach 20 | 5 2 1 3 . 5 . 4 Attach 19 | 1 2 1 3 . 3 2 7 Detach 3 | . . . . . 1 . 2 Swap 32 | . 2 5 7 . 8 8 2 Drop 40 | 1 3 6 10 . 10 1 9 Fire 247 | 1 32 5 36 . 60 51 62 Melee . | . . . . . . . . Ram . | . . . . . . . . Kick . | . . . . . . . . Crush . | . . . . . . . . Escape Stasis 25 | . . . . . . 25 . Rewire . | . . . . . . . . Trap . | . . . . . . . . Miscellaneous . | . . . . . . . . Route ------- -11/Scrapyard -10/Materials (discovered 2 exits: *Mat / *Min) -10/Mines (discovered 3 exits: *Mat x2 / [*Exi]) -10/Exiles -9/Mines -8/Materials (discovered 4 exits: [*Fac x2] / [*Sto] / Gar) -8/Garrison (discovered 3 exits: *Mat x3) -8/Materials History --------- Turn | Location | Event 29 | -11/Scrapyard | Discovered new exit (range 14) 85 | -11/Scrapyard | Entered Materials 196 | -10/Materials | Central database locked down 300 | -10/Materials | Build established: Mutant 435 | -10/Materials | Discovered new exit (range 7) 503 | -10/Materials | Identified exit to Mines 925 | -10/Materials | Entered Mines 936 | -10/Mines | Learned Materials trap positions 967 | -10/Mines | Assembled infested the area 970 | -10/Mines | Met a Derelict bent on vengeance 1340 | -10/Mines | Identified exit to Materials 1410 | -10/Mines | Met a Derelict shopkeep closing up shop 1482 | -10/Mines | Learned location of Storage (-8) 1628 | -10/Mines | Found the Drone Emporium 1635 | -10/Mines | Found Prototype Device 1667 | -10/Mines | Discovered exit to Materials (range 9) 1702 | -10/Mines | Assisted by bots powering up and referring to "LRC-V3" 1906 | -10/Mines | Discovered new exit (range 5) 1917 | -10/Mines | Entered Exiles 1917 | -10/Exiles | Accompanied by 3 allies 1953 | -10/Exiles | Met 8R-AWN 1966 | -10/Exiles | Identified Thief Drone Bay 1991 | -10/Exiles | Attacked by the Exiles 2004 | -10/Exiles | Core integrity fell below 50% 2036 | -10/Exiles | Found 8R-AWN's Boregun 2043 | -10/Exiles | Found 8R-AWN's Boregun 2082 | -10/Exiles | Discovered new exit (range 14) 2099 | -10/Exiles | Core integrity fell below 20% 2267 | -10/Exiles | Destroyed 8R-AWN 2330 | -10/Exiles | Found Prototype Device 2401 | -10/Exiles | Entered Mines 2463 | -9/Mines | Discovered new exit (range 10) 2478 | -9/Mines | Entered Materials 2478 | -8/Materials | Evolved 4 slots: Utility x4 2478 | -8/Materials | Identified AS-neutralizer No. 17b 2479 | -8/Materials | Loaded intel: 17 trap records 2789 | -8/Materials | Discovered new exit (range 15) 3279 | -8/Materials | Discovered new exit (range 16) 3635 | -8/Materials | Build established: Scavenger-Mutant 3823 | -8/Materials | Discovered new exit (range 16) 3891 | -8/Materials | Identified exit to Garrison 3909 | -8/Materials | Entered Garrison 3970 | -8/Garrison | Triggered checkpoint 4050 | -8/Garrison | Discovered new exit (range 12) 4065 | -8/Garrison | Build established: Mutant 4134 | -8/Garrison | Triggered checkpoint 4433 | -8/Garrison | Garrison Relay disabled 4473 | -8/Garrison | Discovered new exit (range 13) 4558 | -8/Garrison | Triggered checkpoint 4672 | -8/Garrison | Discovered new exit (range 15) 4702 | -8/Garrison | Installed Relay Interface Framework 5284 | -8/Garrison | Triggered checkpoint 6146 | -8/Garrison | Entered Materials 7212 | -8/Materials | Core integrity fell below 50% 7365 | -8/Materials | Lost 3 parts (1u2w) 7397 | -8/Materials | Self-destructed Last Messages --------------- 07340_ K-01 Serf collects debris. 07341_ Acquired 20 matter. 07343_ K-01 Serf collects debris. 07344_ S-10 Pest destroyed. 07344_ R-06 Scavenger collects Flight Unit. 07347_ Destroyed Particle Gun. 07353_ Destroyed Lgt. Ion Engine. 07353_ S-10 Pest destroyed. 07355_ R-06 Scavenger collects Flight Unit. 07359_ K-01 Serf collects debris. 07379_ Adv. Beam Rifle destroyed. 07382_ HV Slug penetrates G-47 Trooper. 07382_ G-47 Trooper suffers critical hit. 07382_ Destroyed Aluminum Leg. 07382_ HV Slug penetrates Wall. 07382_ Adv. Beam Rifle destroyed. 07384_ Arm. Wheel destroyed. 07390_ K-01 Serf collects debris. 07393_ 8R-AWN's Boregun destroyed. 07396_ G-47 Trooper destroyed. Map ----- +----------------------------------------------------+ | ############+###### #### #""""" ########### | | ## ##### ### # """ ########### | | """ [ =# ### # ########### | | """ [ / ### # ########### | | """ [[ # ### #####+############### | | # #### ### ########## | | # ############ ########## | | # # ! ##### ########## | | ########### %+%% ########+####+#############?? | | ########### #% "" ###### # #####?### | | ########### [# """ ###### # ######### | | ####### # """ ###### # ######### | | # # # ###### # """ """ ######### | | ""?# """ # ############# # """ """ #######?# | | S?" # ?"" # ############# # """ """ ########? | | "" # """ # ############# # ########? | | # # ############# % # #######?# | | ##### "?" # ############# %*################### | | # """ # ###############+#####?############## | | # """ # ###############!########?#########?# | | # # ###############%####### #########?#? | | # + ? # ###############[## ? ########? | | #?? # # ############### ## #####?#?? | | # # # %##### """" #### #? #######?? | | # ####### ##### ""R" #### ## ######?#? | | # # "" " @ # ######??? | | # #% #### + ######??? | | # " %#%[ #### # #####???? | | ######### """ %g%! #### # ? ######??? | | ?#?#?#### "" %#####g##### #############??#??? | | ? ? ? ## """ ##?## ###? ! ###########??##??? | | ????? ?## "" ##### #?## ?##???? | | #??"?"?? % ? ? #????? | | # ??"? + ########## #########? ?#????? | | ?? ??" # #####################?#?? #????? | | ????"" # ! #? ?? ###### ??# ?????? | | ?????"?# # ? #####""? ?? #???????? | | ? ?? ? # """# ? ?###??"?" ???#? ?????? | | ?#?#??## T"#?? ? ?##?#?#?"? ????????????? | | ????? ? """#?? ? ????#### ? ????? ?????? | | ????? ? ? ? ? #?###?"?"?????????????? | | ?????? ? # ?? ? ##?#??????? ??????????? | | ????????#?####?##??? ?"?""?##????"?? ? ?????????? | | ?????????????##?#?#???"?""??#?#??? ??????????????? | | ????????? ?#?#???#?#####?######??????????????????? | | ??????????????#?#?##??????#?#????????????????????? | | ???????????#???????#??#??????????????????????????? | | ?????????????????????????????????????????????????? | | ?????????????????????????????????????????????????? | | ?????????????????????????????????????????????????? | +----------------------------------------------------+ Best States ------------- Heat Dissipation 57 Energy Generation 19 Energy Capacity 310 Matter Stores 300 Matter Capacity 300 Sight Range 16 Terrain Scan Range 20 Terrain Scan Density 110 Additional Mass Support 12 Armor Coverage 450 Resistance: KI 30 Weapon Cycling 25 Evasion (%) 40 Item Schematics ----------------- None Robot Schematics ------------------ None Fabricated ------------ Nothing Alien Tech Used ----------------- None Achievements -------------- None Challenges ------------ None Game ------ Seed HellfireLightningMultirail Manual? 0 Play Time 01:06:13 Cumulative 68.1 hours Start 2020.10.04 @ 11:13:03 End 2020.10.04 @ 18:59:31 Sessions 3 Manual Loads 0 Difficulty Rogue Special Mode None Game No. 61 Rogue 61 Adventurer 0 Explorer 0 Win Type - Total 0 Types 0/0/0/0/0/0/0/0/0 Lore% 48 Gallery% 52 Achievement% 43 Wizard Run 0 Options --------- ASCII 0 Keyboard 1 Movement Numpad Keybinds 0 Fullscreen 2 Font 18/Smallcaps Map View 76x50 Tactical HUD 1 Map Filters NONE Filters NONE Steam 1 RUN: 57d01b55-6bec-4310-b945-55d57135a9fa